[Event "Titled Tuesday Blitz July 11 Early 2023"]
[White "Atanasov, Radislav"]
[Black "Herman, Daniel"]
[WhiteFideId "2901471"]
[BlackFideId "30935008"]
[WhiteElo "2205"]
[BlackElo "2439"]
[Result "1-0"]
[Round "5"]
[TimeControl "180+2"]
[Date "2023.07.11"]
[WhiteClock "0:00:20"]
[BlackClock "0:00:00"]
[Board "146"]

1. e4 {[%clk 0:02:59]}  e5 {[%clk 0:03:00]} 2. Nf3 {[%clk 0:02:58]}  Nc6 {[%clk 0:03:01]} 3. Bb5 {[%clk 0:02:59]}  a6 {[%clk 0:03:01]} 4. Ba4 {[%clk 0:02:59]}  Nf6 {[%clk 0:03:01]} 5. O-O {[%clk 0:02:59]}  Nxe4 {[%clk 0:02:54]} 6. d4 {[%clk 0:02:59]}  d5 {[%clk 0:02:52]} 7. dxe5 {[%clk 0:02:55]}  Bc5 {[%clk 0:02:47]} 8. Nbd2 {[%clk 0:02:31]}  Nxf2 {[%clk 0:02:28]} 9. Rxf2 {[%clk 0:02:31]}  O-O {[%clk 0:02:29]} 10. Bxc6 {[%clk 0:02:23]}  bxc6 {[%clk 0:02:28]} 11. Nf1 {[%clk 0:02:24]}  Bxf2+ {[%clk 0:02:13]} 12. Kxf2 {[%clk 0:02:24]}  f6 {[%clk 0:02:14]} 13. Kg1 {[%clk 0:02:18]}  fxe5 {[%clk 0:02:06]} 14. Nxe5 {[%clk 0:02:17]}  Qh4 {[%clk 0:02:06]} 15. Nf3 {[%clk 0:02:14]}  Qh5 {[%clk 0:01:46]} 16. Ng3 {[%clk 0:02:09]}  Qg6 {[%clk 0:01:42]} 17. Be3 {[%clk 0:02:00]}  Bg4 {[%clk 0:01:40]} 18. Bc5 {[%clk 0:02:00]}  Rfe8 {[%clk 0:01:26]} 19. Qd4 {[%clk 0:01:57]}  Bxf3 {[%clk 0:01:22]} 20. gxf3 {[%clk 0:01:57]}  Qxc2 {[%clk 0:01:22]} 21. Rf1 {[%clk 0:01:36]}  Re6 {[%clk 0:01:14]} 22. Rf2 {[%clk 0:01:36]}  Qb1+ {[%clk 0:01:13]} 23. Kg2 {[%clk 0:01:36]}  Rae8 {[%clk 0:00:56]} 24. f4 {[%clk 0:01:36]}  Re1 {[%clk 0:00:52]} 25. f5 {[%clk 0:01:36]}  Rg1+ {[%clk 0:00:33]} 26. Kh3 {[%clk 0:01:36]}  Rd1 {[%clk 0:00:33]} 27. f6 {[%clk 0:01:21]}  gxf6 {[%clk 0:00:23]} 28. Qxf6 {[%clk 0:01:13]}  Qg6 {[%clk 0:00:23]} 29. Qf8+ {[%clk 0:00:59]}  Rxf8 {[%clk 0:00:21]} 30. Rxf8+ {[%clk 0:01:00]}  Kg7 {[%clk 0:00:22]} 31. Nf5+ {[%clk 0:01:01]}  Qxf5+ {[%clk 0:00:19]} 32. Rxf5 {[%clk 0:01:02]}  Kg6 {[%clk 0:00:15]} 33. Rf4 {[%clk 0:00:45]}  Rc1 {[%clk 0:00:12]} 34. b4 {[%clk 0:00:42]}  Rc3+ {[%clk 0:00:10]} 35. Kg2 {[%clk 0:00:41]}  Rc2+ {[%clk 0:00:09]} 36. Rf2 {[%clk 0:00:41]}  Rc3 {[%clk 0:00:09]} 37. Rf6+ {[%clk 0:00:30]}  Kg5 {[%clk 0:00:05]} 38. Rxc6 {[%clk 0:00:30]}  Rc2+ {[%clk 0:00:04]} 39. Kg3 {[%clk 0:00:29]}  Rc3+ {[%clk 0:00:05]} 40. Kf2 {[%clk 0:00:25]}  Rc2+ {[%clk 0:00:05]} 41. Kf3 {[%clk 0:00:25]}  Rxa2 {[%clk 0:00:03]} 42. Be3+ {[%clk 0:00:24]}  Kf5 {[%clk 0:00:03]} 43. Rxc7 {[%clk 0:00:24]}  Rxh2 {[%clk 0:00:02]} 44. Rf7+ {[%clk 0:00:21]}  Ke6 {[%clk 0:00:02]} 45. Ra7 {[%clk 0:00:20]}  Rh3+ {[%clk 0:00:02]} 46. Ke2 {[%clk 0:00:20]}  Rh2+ {[%clk 0:00:02]} 47. Kd3 {[%clk 0:00:20]}  Rb2 {[%clk 0:00:03]} 48. Rxa6+ {[%clk 0:00:20]}  Kf5 {[%clk 0:00:03]} 49. Kc3 {[%clk 0:00:20]}  Re2 {[%clk 0:00:03]} 50. Bd4 {[%clk 0:00:20]}  Rf2 {[%clk 0:00:00]} 51. Rf6+ {[%clk 0:00:20]} 1-0


[Site "https://www.chess.com"]

[Event "Titled Tuesday Blitz July 11 Early 2023"]
[White "Wesolowska, Hanna"]
[Black "JonSnowNW1"]
[WhiteFideId "1104683"]
[WhiteElo "2168"]
[BlackElo "2429"]
[Result "0-1"]
[Round "5"]
[TimeControl "180+2"]
[Date "2023.07.11"]
[WhiteClock "0:00:34"]
[BlackClock "0:00:39"]
[Board "147"]

1. e4 {[%clk 0:02:46]}  c5 {[%clk 0:02:59]} 2. Nc3 {[%clk 0:02:46]}  d6 {[%clk 0:02:59]} 3. g3 {[%clk 0:02:45]}  g6 {[%clk 0:02:59]} 4. d3 {[%clk 0:02:45]}  Bg7 {[%clk 0:02:59]} 5. Be3 {[%clk 0:02:44]}  Nc6 {[%clk 0:02:59]} 6. Qd2 {[%clk 0:02:44]}  Rb8 {[%clk 0:03:00]} 7. Bg2 {[%clk 0:02:43]}  b5 {[%clk 0:02:56]} 8. Nd1 {[%clk 0:02:42]}  a5 {[%clk 0:02:41]} 9. c3 {[%clk 0:02:42]}  b4 {[%clk 0:02:41]} 10. Ne2 {[%clk 0:02:42]}  a4 {[%clk 0:02:40]} 11. a3 {[%clk 0:02:35]}  bxc3 {[%clk 0:02:31]} 12. Ndxc3 {[%clk 0:02:26]}  Qa5 {[%clk 0:02:03]} 13. d4 {[%clk 0:02:21]}  cxd4 {[%clk 0:01:59]} 14. Nxd4 {[%clk 0:02:21]}  Ne5 {[%clk 0:01:48]} 15. Nd5 {[%clk 0:02:07]}  Qxd2+ {[%clk 0:01:32]} 16. Kxd2 {[%clk 0:02:04]}  Nc4+ {[%clk 0:01:16]} 17. Kd3 {[%clk 0:01:37]}  Nxe3 {[%clk 0:01:05]} 18. Kxe3 {[%clk 0:01:31]}  e6 {[%clk 0:00:55]} 19. Nc7+ {[%clk 0:01:22]}  Kd7 {[%clk 0:00:55]} 20. Ncb5 {[%clk 0:01:22]}  Ba6 {[%clk 0:00:54]} 21. Nc3 {[%clk 0:01:18]}  Nf6 {[%clk 0:00:45]} 22. Nxa4 {[%clk 0:01:13]}  Ng4+ {[%clk 0:00:45]} 23. Kf4 {[%clk 0:01:13]}  h5 {[%clk 0:00:40]} 24. h3 {[%clk 0:00:35]}  Bh6+ {[%clk 0:00:38]} 25. Kf3 {[%clk 0:00:34]}  Ne5# {[%clk 0:00:39]} 0-1


[Site "https://www.chess.com"]

[Event "Titled Tuesday Blitz July 11 Early 2023"]
[White "Omariev, Maksim"]
[Black "Ishowmoves57"]
[WhiteFideId "4193423"]
[WhiteElo "2424"]
[BlackElo "2135"]
[Result "0-1"]
[Round "5"]
[TimeControl "180+2"]
[Date "2023.07.11"]
[WhiteClock "0:00:00"]
[BlackClock "0:00:08"]
[Board "148"]

1. d4 {[%clk 0:02:29]}  Nf6 {[%clk 0:02:58]} 2. Bf4 {[%clk 0:02:28]}  d5 {[%clk 0:02:58]} 3. e3 {[%clk 0:02:27]}  e6 {[%clk 0:02:58]} 4. c3 {[%clk 0:02:27]}  Bd6 {[%clk 0:02:58]} 5. Nd2 {[%clk 0:02:15]}  O-O {[%clk 0:02:58]} 6. Ngf3 {[%clk 0:02:14]}  c5 {[%clk 0:02:59]} 7. Ne5 {[%clk 0:02:11]}  Qc7 {[%clk 0:02:57]} 8. Ndf3 {[%clk 0:02:10]}  Nbd7 {[%clk 0:02:57]} 9. Nd3 {[%clk 0:02:06]}  Bxf4 {[%clk 0:02:54]} 10. Nxf4 {[%clk 0:02:07]}  b6 {[%clk 0:02:50]} 11. Be2 {[%clk 0:02:03]}  Bb7 {[%clk 0:02:49]} 12. Nd3 {[%clk 0:02:02]}  Ne4 {[%clk 0:02:43]} 13. O-O {[%clk 0:01:59]}  Rae8 {[%clk 0:02:32]} 14. Nfe5 {[%clk 0:01:42]}  Nxe5 {[%clk 0:02:29]} 15. Nxe5 {[%clk 0:01:43]}  f6 {[%clk 0:02:26]} 16. Nd3 {[%clk 0:01:32]}  c4 {[%clk 0:02:25]} 17. Nf4 {[%clk 0:01:27]}  Qd8 {[%clk 0:02:02]} 18. Bh5 {[%clk 0:01:23]}  Re7 {[%clk 0:01:52]} 19. Bg4 {[%clk 0:01:22]}  f5 {[%clk 0:01:49]} 20. Bf3 {[%clk 0:01:19]}  g5 {[%clk 0:01:46]} 21. Ne2 {[%clk 0:01:08]}  Nf6 {[%clk 0:01:43]} 22. Ng3 {[%clk 0:00:56]}  g4 {[%clk 0:01:41]} 23. Be2 {[%clk 0:00:56]}  h5 {[%clk 0:01:40]} 24. f3 {[%clk 0:00:55]}  Rg7 {[%clk 0:01:35]} 25. e4 {[%clk 0:00:30]}  gxf3 {[%clk 0:01:22]} 26. Bxf3 {[%clk 0:00:25]}  h4 {[%clk 0:01:18]} 27. e5 {[%clk 0:00:09]}  hxg3 {[%clk 0:01:13]} 28. exf6 {[%clk 0:00:10]}  gxh2+ {[%clk 0:01:13]} 29. Kh1 {[%clk 0:00:08]}  Rxf6 {[%clk 0:01:08]} 30. Qe2 {[%clk 0:00:08]}  Bc8 {[%clk 0:01:06]} 31. Rae1 {[%clk 0:00:09]}  Rfg6 {[%clk 0:01:05]} 32. Qe5 {[%clk 0:00:09]}  Bd7 {[%clk 0:00:56]} 33. Re2 {[%clk 0:00:09]}  Qf6 {[%clk 0:00:51]} 34. Qb8+ {[%clk 0:00:06]}  Qf8 {[%clk 0:00:50]} 35. Qxa7 {[%clk 0:00:05]}  b5 {[%clk 0:00:41]} 36. Qa5 {[%clk 0:00:03]}  Qf6 {[%clk 0:00:38]} 37. Qc7 {[%clk 0:00:03]}  Qg5 {[%clk 0:00:36]} 38. Qe5 {[%clk 0:00:03]}  Qg3 {[%clk 0:00:35]} 39. Qxg3 {[%clk 0:00:03]}  Rxg3 {[%clk 0:00:36]} 40. Kxh2 {[%clk 0:00:03]}  R3g6 {[%clk 0:00:32]} 41. a3 {[%clk 0:00:03]}  Rh6+ {[%clk 0:00:32]} 42. Kg1 {[%clk 0:00:03]}  Rgh7 {[%clk 0:00:32]} 43. Kf2 {[%clk 0:00:03]}  Kg7 {[%clk 0:00:32]} 44. Ke3 {[%clk 0:00:04]}  Kf6 {[%clk 0:00:31]} 45. Kf4 {[%clk 0:00:04]}  Rh4+ {[%clk 0:00:31]} 46. Kg3 {[%clk 0:00:05]}  R4h6 {[%clk 0:00:30]} 47. Ree1 {[%clk 0:00:05]}  Rg7+ {[%clk 0:00:30]} 48. Kf4 {[%clk 0:00:05]}  Rh4+ {[%clk 0:00:29]} 49. Ke3 {[%clk 0:00:05]}  Rgh7 {[%clk 0:00:30]} 50. Kf2 {[%clk 0:00:06]}  Rg7 {[%clk 0:00:29]} 51. Rh1 {[%clk 0:00:06]}  Rgh7 {[%clk 0:00:29]} 52. Rxh4 {[%clk 0:00:05]}  Rxh4 {[%clk 0:00:29]} 53. Kg3 {[%clk 0:00:06]}  Rh7 {[%clk 0:00:29]} 54. Kf4 {[%clk 0:00:06]}  Rh4+ {[%clk 0:00:29]} 55. Kg3 {[%clk 0:00:06]}  Rh7 {[%clk 0:00:29]} 56. Rf1 {[%clk 0:00:07]}  Rg7+ {[%clk 0:00:28]} 57. Kf4 {[%clk 0:00:07]}  Rh7 {[%clk 0:00:27]} 58. g3 {[%clk 0:00:07]}  Rh2 {[%clk 0:00:27]} 59. Rb1 {[%clk 0:00:06]}  Rf2 {[%clk 0:00:24]} 60. Ke3 {[%clk 0:00:05]}  Rh2 {[%clk 0:00:24]} 61. b3 {[%clk 0:00:04]}  Rc2 {[%clk 0:00:21]} 62. bxc4 {[%clk 0:00:03]}  Rxc3+ {[%clk 0:00:21]} 63. Kf4 {[%clk 0:00:04]}  dxc4 {[%clk 0:00:17]} 64. Ra1 {[%clk 0:00:03]}  Rd3 {[%clk 0:00:15]} 65. d5 {[%clk 0:00:03]}  Rd4+ {[%clk 0:00:14]} 66. Ke3 {[%clk 0:00:03]}  Rd3+ {[%clk 0:00:14]} 67. Kf4 {[%clk 0:00:03]}  exd5 {[%clk 0:00:14]} 68. Rh1 {[%clk 0:00:04]}  Rxa3 {[%clk 0:00:12]} 69. Rh6+ {[%clk 0:00:04]}  Ke7 {[%clk 0:00:12]} 70. Bxd5 {[%clk 0:00:04]}  c3 {[%clk 0:00:12]} 71. Ke5 {[%clk 0:00:04]}  c2 {[%clk 0:00:11]} 72. Rh7+ {[%clk 0:00:05]}  Kd8 {[%clk 0:00:11]} 73. Rh1 {[%clk 0:00:01]}  Rc3 {[%clk 0:00:10]} 74. Rc1 {[%clk 0:00:02]}  Bc6 {[%clk 0:00:07]} 75. Be6 {[%clk 0:00:02]}  Be4 {[%clk 0:00:07]} 76. Kd4 {[%clk 0:00:02]}  Rxg3 {[%clk 0:00:07]} 77. Bd5 {[%clk 0:00:01]}  Rd3+ {[%clk 0:00:07]} 78. Kc5 {[%clk 0:00:01]}  Rxd5+ {[%clk 0:00:07]} 79. Kb4 {[%clk 0:00:00]}  Rd1 {[%clk 0:00:08]} 0-1


[Site "https://www.chess.com"]

[Event "Titled Tuesday Blitz July 11 Early 2023"]
[White "Mejia, Cherry Ann"]
[Black "Pinheiro, Iung Alicio de O."]
[WhiteFideId "5206880"]
[BlackFideId "2104350"]
[WhiteElo "2351"]
[BlackElo "2578"]
[Result "1-0"]
[Round "5"]
[TimeControl "180+2"]
[Date "2023.07.11"]
[WhiteClock "0:01:43"]
[BlackClock "0:00:00"]
[Board "151"]

1. e4 {[%clk 0:02:57]}  e6 {[%clk 0:02:57]} 2. d4 {[%clk 0:02:57]}  d5 {[%clk 0:02:57]} 3. e5 {[%clk 0:02:57]}  c5 {[%clk 0:02:57]} 4. c3 {[%clk 0:02:57]}  Nc6 {[%clk 0:02:56]} 5. g3 {[%clk 0:02:58]}  Qb6 {[%clk 0:02:54]} 6. Ne2 {[%clk 0:02:58]}  Bd7 {[%clk 0:02:42]} 7. Bh3 {[%clk 0:02:57]}  Rc8 {[%clk 0:02:31]} 8. O-O {[%clk 0:02:56]}  cxd4 {[%clk 0:02:31]} 9. cxd4 {[%clk 0:02:56]}  Nge7 {[%clk 0:01:41]} 10. Nbc3 {[%clk 0:02:56]}  Na5 {[%clk 0:01:26]} 11. b3 {[%clk 0:02:51]}  h5 {[%clk 0:01:24]} 12. Be3 {[%clk 0:02:33]}  h4 {[%clk 0:01:24]} 13. gxh4 {[%clk 0:02:33]}  Ng6 {[%clk 0:01:22]} 14. Rc1 {[%clk 0:02:14]}  Nxh4 {[%clk 0:01:20]} 15. Nf4 {[%clk 0:02:13]}  Ba3 {[%clk 0:01:18]} 16. Rc2 {[%clk 0:02:10]}  Bb4 {[%clk 0:01:08]} 17. Ncxd5 {[%clk 0:01:46]}  exd5 {[%clk 0:00:32]} 18. Bxd7+ {[%clk 0:01:44]}  Kxd7 {[%clk 0:00:30]} 19. Qg4+ {[%clk 0:01:44]}  Ke7 {[%clk 0:00:00]} 20. Nxd5+ {[%clk 0:01:43]} 1-0


[Site "https://www.chess.com"]

[Event "Titled Tuesday Blitz July 11 Early 2023"]
[White "Janaszak, Dawid"]
[Black "Shapiro, Daniel"]
[WhiteFideId "1119206"]
[BlackFideId "2001780"]
[WhiteElo "2571"]
[BlackElo "2337"]
[Result "1-0"]
[Round "5"]
[TimeControl "180+2"]
[Date "2023.07.11"]
[WhiteClock "0:00:39"]
[BlackClock "0:00:08"]
[Board "152"]

1. Nc3 {[%clk 0:03:00]}  c5 {[%clk 0:02:56]} 2. Nf3 {[%clk 0:02:59]}  e6 {[%clk 0:02:53]} 3. d4 {[%clk 0:02:56]}  cxd4 {[%clk 0:02:53]} 4. Nxd4 {[%clk 0:02:55]}  a6 {[%clk 0:02:53]} 5. g3 {[%clk 0:02:51]}  Qc7 {[%clk 0:02:53]} 6. Bg2 {[%clk 0:02:51]}  Nf6 {[%clk 0:02:52]} 7. O-O {[%clk 0:02:51]}  Nc6 {[%clk 0:02:53]} 8. e4 {[%clk 0:02:51]}  Be7 {[%clk 0:02:20]} 9. a4 {[%clk 0:02:45]}  Rb8 {[%clk 0:02:17]} 10. Nb3 {[%clk 0:02:42]}  b5 {[%clk 0:02:12]} 11. a5 {[%clk 0:02:42]}  d6 {[%clk 0:02:04]} 12. Be3 {[%clk 0:02:40]}  Nd7 {[%clk 0:02:04]} 13. Kh1 {[%clk 0:02:31]}  O-O {[%clk 0:02:04]} 14. f3 {[%clk 0:02:31]}  Bb7 {[%clk 0:01:54]} 15. g4 {[%clk 0:02:25]}  Rbc8 {[%clk 0:01:52]} 16. Rf2 {[%clk 0:02:24]}  Nce5 {[%clk 0:01:51]} 17. f4 {[%clk 0:02:14]}  Nc4 {[%clk 0:01:50]} 18. Bc1 {[%clk 0:02:15]}  Nb8 {[%clk 0:01:47]} 19. f5 {[%clk 0:02:11]}  Bf6 {[%clk 0:01:38]} 20. g5 {[%clk 0:02:09]}  Be5 {[%clk 0:01:37]} 21. f6 {[%clk 0:02:03]}  Nxb2 {[%clk 0:01:32]} 22. Bxb2 {[%clk 0:01:51]}  Bxc3 {[%clk 0:01:32]} 23. fxg7 {[%clk 0:01:42]}  Kxg7 {[%clk 0:01:10]} 24. Bxc3+ {[%clk 0:01:28]}  Qxc3 {[%clk 0:01:11]} 25. Nd4 {[%clk 0:01:28]}  Rc4 {[%clk 0:01:01]} 26. Nxe6+ {[%clk 0:01:08]}  fxe6 {[%clk 0:00:53]} 27. Rxf8 {[%clk 0:01:08]}  Kxf8 {[%clk 0:00:54]} 28. Qxd6+ {[%clk 0:01:09]}  Ke8 {[%clk 0:00:21]} 29. Qxe6+ {[%clk 0:01:02]}  Kd8 {[%clk 0:00:19]} 30. Rd1+ {[%clk 0:01:01]}  Rd4 {[%clk 0:00:18]} 31. Qf6+ {[%clk 0:01:00]}  Kc7 {[%clk 0:00:18]} 32. Qxd4 {[%clk 0:00:54]}  Qxd4 {[%clk 0:00:18]} 33. Rxd4 {[%clk 0:00:55]}  Nc6 {[%clk 0:00:17]} 34. Rd2 {[%clk 0:00:54]}  Nxa5 {[%clk 0:00:17]} 35. e5 {[%clk 0:00:54]}  Bxg2+ {[%clk 0:00:15]} 36. Kxg2 {[%clk 0:00:54]}  Nc6 {[%clk 0:00:15]} 37. e6 {[%clk 0:00:54]}  a5 {[%clk 0:00:16]} 38. Rd5 {[%clk 0:00:47]}  b4 {[%clk 0:00:14]} 39. h4 {[%clk 0:00:42]}  a4 {[%clk 0:00:14]} 40. h5 {[%clk 0:00:40]}  a3 {[%clk 0:00:14]} 41. g6 {[%clk 0:00:39]}  hxg6 {[%clk 0:00:14]} 42. h6 {[%clk 0:00:39]}  a2 {[%clk 0:00:08]} 43. Rd1 {[%clk 0:00:39]} 1-0


[Site "https://www.chess.com"]

[Event "Titled Tuesday Blitz July 11 Early 2023"]
[White "Rosenberg, Evan S"]
[Black "Dushyant Sharma"]
[WhiteFideId "2019299"]
[BlackFideId "25065130"]
[WhiteElo "2323"]
[BlackElo "2503"]
[Result "0-1"]
[Round "5"]
[TimeControl "180+2"]
[Date "2023.07.11"]
[WhiteClock "0:00:44"]
[BlackClock "0:00:35"]
[Board "155"]

1. d4 {[%clk 0:03:00]}  d5 {[%clk 0:03:00]} 2. Nf3 {[%clk 0:03:00]}  e6 {[%clk 0:02:59]} 3. g3 {[%clk 0:02:58]}  Nf6 {[%clk 0:02:59]} 4. Bg2 {[%clk 0:02:59]}  Be7 {[%clk 0:03:00]} 5. O-O {[%clk 0:02:59]}  O-O {[%clk 0:03:01]} 6. c4 {[%clk 0:02:59]}  dxc4 {[%clk 0:03:02]} 7. Qc2 {[%clk 0:02:59]}  c5 {[%clk 0:03:03]} 8. dxc5 {[%clk 0:02:57]}  Nc6 {[%clk 0:03:04]} 9. Na3 {[%clk 0:02:50]}  e5 {[%clk 0:03:02]} 10. Nxc4 {[%clk 0:02:49]}  e4 {[%clk 0:03:02]} 11. Nfe5 {[%clk 0:02:49]}  Nd4 {[%clk 0:03:02]} 12. Qb1 {[%clk 0:02:46]}  Nxe2+ {[%clk 0:03:02]} 13. Kh1 {[%clk 0:02:46]}  Nxc1 {[%clk 0:03:00]} 14. Rxc1 {[%clk 0:02:45]}  Bxc5 {[%clk 0:02:59]} 15. Ne3 {[%clk 0:02:38]}  Bxe3 {[%clk 0:02:58]} 16. fxe3 {[%clk 0:02:38]}  Qe7 {[%clk 0:02:54]} 17. Nc4 {[%clk 0:02:35]}  Bg4 {[%clk 0:02:48]} 18. b3 {[%clk 0:02:28]}  Bf3 {[%clk 0:02:45]} 19. Rf1 {[%clk 0:02:22]}  Bxg2+ {[%clk 0:02:38]} 20. Kxg2 {[%clk 0:02:23]}  Rfd8 {[%clk 0:02:33]} 21. Rf2 {[%clk 0:02:22]}  b5 {[%clk 0:02:33]} 22. Na5 {[%clk 0:02:21]}  Ng4 {[%clk 0:02:32]} 23. Re2 {[%clk 0:02:16]}  Rd3 {[%clk 0:02:31]} 24. Qg1 {[%clk 0:02:08]}  Qc5 {[%clk 0:02:25]} 25. Rc1 {[%clk 0:02:05]}  Qb6 {[%clk 0:02:18]} 26. Nc6 {[%clk 0:02:04]}  Nxe3+ {[%clk 0:02:14]} 27. Kh1 {[%clk 0:02:04]}  Re8 {[%clk 0:01:39]} 28. a4 {[%clk 0:01:54]}  bxa4 {[%clk 0:01:28]} 29. bxa4 {[%clk 0:01:53]}  Nd5 {[%clk 0:01:25]} 30. Nxa7 {[%clk 0:01:48]}  e3 {[%clk 0:01:20]} 31. Nb5 {[%clk 0:01:46]}  Nf6 {[%clk 0:01:11]} 32. Qg2 {[%clk 0:01:36]}  Red8 {[%clk 0:01:07]} 33. Rf1 {[%clk 0:01:33]}  h5 {[%clk 0:01:07]} 34. h3 {[%clk 0:01:27]}  Qa6 {[%clk 0:01:00]} 35. Rf4 {[%clk 0:01:22]}  Rd2 {[%clk 0:00:58]} 36. Qf3 {[%clk 0:01:12]}  Qe6 {[%clk 0:00:54]} 37. g4 {[%clk 0:00:55]}  Qa2 {[%clk 0:00:53]} 38. Nc3 {[%clk 0:00:52]}  Qa1+ {[%clk 0:00:53]} 39. Kg2 {[%clk 0:00:52]}  Qxc3 {[%clk 0:00:53]} 40. Kg3 {[%clk 0:00:53]}  Rxe2 {[%clk 0:00:42]} 41. Qxe2 {[%clk 0:00:53]}  Qe5 {[%clk 0:00:42]} 42. Qf3 {[%clk 0:00:49]}  e2 {[%clk 0:00:41]} 43. Qe3 {[%clk 0:00:47]}  Qxe3+ {[%clk 0:00:40]} 44. Kh4 {[%clk 0:00:44]}  Qxf4 {[%clk 0:00:35]} 0-1


[Site "https://www.chess.com"]

[Event "Titled Tuesday Blitz July 11 Early 2023"]
[White "Okike, David"]
[Black "Ljukin, Sergei"]
[WhiteFideId "8500134"]
[BlackFideId "14102200"]
[WhiteElo "2309"]
[BlackElo "2496"]
[Result "0-1"]
[Round "5"]
[TimeControl "180+2"]
[Date "2023.07.11"]
[WhiteClock "0:01:01"]
[BlackClock "0:00:09"]
[Board "156"]

1. e4 {[%clk 0:03:00]}  e6 {[%clk 0:02:58]} 2. d4 {[%clk 0:03:00]}  d5 {[%clk 0:02:58]} 3. Nc3 {[%clk 0:03:00]}  Bb4 {[%clk 0:02:56]} 4. e5 {[%clk 0:03:00]}  Ne7 {[%clk 0:02:56]} 5. a3 {[%clk 0:02:59]}  Bxc3+ {[%clk 0:02:57]} 6. bxc3 {[%clk 0:03:00]}  c5 {[%clk 0:02:57]} 7. Qg4 {[%clk 0:02:59]}  Qc7 {[%clk 0:02:57]} 8. Qxg7 {[%clk 0:02:59]}  Rg8 {[%clk 0:02:57]} 9. Qxh7 {[%clk 0:02:59]}  cxd4 {[%clk 0:02:57]} 10. Ne2 {[%clk 0:03:00]}  Nbc6 {[%clk 0:02:57]} 11. f4 {[%clk 0:03:00]}  Bd7 {[%clk 0:02:58]} 12. Rb1 {[%clk 0:03:00]}  dxc3 {[%clk 0:02:54]} 13. Qd3 {[%clk 0:03:00]}  O-O-O {[%clk 0:02:44]} 14. Nxc3 {[%clk 0:02:59]}  Na5 {[%clk 0:02:44]} 15. Ne2 {[%clk 0:02:58]}  Nc4 {[%clk 0:02:20]} 16. Bd2 {[%clk 0:02:56]}  Kb8 {[%clk 0:02:05]} 17. Nd4 {[%clk 0:02:51]}  Nf5 {[%clk 0:01:56]} 18. Nxf5 {[%clk 0:02:48]}  exf5 {[%clk 0:01:56]} 19. g3 {[%clk 0:02:46]}  a6 {[%clk 0:01:37]} 20. Bg2 {[%clk 0:02:45]}  Bb5 {[%clk 0:01:37]} 21. Rxb5 {[%clk 0:02:44]}  axb5 {[%clk 0:01:36]} 22. Bb4 {[%clk 0:02:43]}  Qb6 {[%clk 0:01:24]} 23. Ke2 {[%clk 0:02:43]}  f6 {[%clk 0:01:19]} 24. Rf1 {[%clk 0:02:18]}  fxe5 {[%clk 0:01:16]} 25. fxe5 {[%clk 0:02:18]}  Nxe5 {[%clk 0:01:09]} 26. Qxf5 {[%clk 0:02:11]}  Rge8 {[%clk 0:01:02]} 27. Qf4 {[%clk 0:01:57]}  Ka8 {[%clk 0:00:58]} 28. Kd1 {[%clk 0:01:50]}  Nc4 {[%clk 0:00:55]} 29. Re1 {[%clk 0:01:48]}  Ne3+ {[%clk 0:00:52]} 30. Rxe3 {[%clk 0:01:40]}  Qxe3 {[%clk 0:00:31]} 31. Qxe3 {[%clk 0:01:39]}  Rxe3 {[%clk 0:00:32]} 32. Kd2 {[%clk 0:01:40]}  Re6 {[%clk 0:00:28]} 33. Bf3 {[%clk 0:01:38]}  Rh8 {[%clk 0:00:23]} 34. h4 {[%clk 0:01:37]}  Rg6 {[%clk 0:00:22]} 35. Bc3 {[%clk 0:01:23]}  Rf8 {[%clk 0:00:20]} 36. Be2 {[%clk 0:01:17]}  Rxg3 {[%clk 0:00:17]} 37. h5 {[%clk 0:01:17]}  Rh3 {[%clk 0:00:10]} 38. Bg7 {[%clk 0:01:14]}  Rf2 {[%clk 0:00:10]} 39. Ke1 {[%clk 0:01:13]}  Rhh2 {[%clk 0:00:09]} 40. Bd3 {[%clk 0:01:12]}  Rfg2 {[%clk 0:00:08]} 41. h6 {[%clk 0:01:08]}  Rg1+ {[%clk 0:00:07]} 42. Bf1 {[%clk 0:01:08]}  Rhh1 {[%clk 0:00:06]} 43. Ke2 {[%clk 0:01:06]}  Rxf1 {[%clk 0:00:06]} 44. h7 {[%clk 0:01:04]}  Rxh7 {[%clk 0:00:06]} 45. Bd4 {[%clk 0:01:04]}  Rff7 {[%clk 0:00:03]} 46. Kd2 {[%clk 0:01:02]}  Rh5 {[%clk 0:00:04]} 47. Kc3 {[%clk 0:01:02]}  Rhf5 {[%clk 0:00:04]} 48. Kb4 {[%clk 0:01:02]}  Rf4 {[%clk 0:00:04]} 49. c3 {[%clk 0:01:02]}  Rc7 {[%clk 0:00:04]} 50. Kxb5 {[%clk 0:01:02]}  Rxd4 {[%clk 0:00:04]} 51. cxd4 {[%clk 0:01:01]}  Rc4 {[%clk 0:00:05]} 52. a4 {[%clk 0:01:01]}  Rxd4 {[%clk 0:00:05]} 53. Kc5 {[%clk 0:01:02]}  Rxa4 {[%clk 0:00:05]} 54. Kxd5 {[%clk 0:01:03]}  Ka7 {[%clk 0:00:05]} 55. Kc5 {[%clk 0:01:03]}  Ra6 {[%clk 0:00:05]} 56. Kb5 {[%clk 0:01:04]}  Rc6 {[%clk 0:00:06]} 57. Ka5 {[%clk 0:01:04]}  Rc7 {[%clk 0:00:05]} 58. Kb5 {[%clk 0:01:04]}  b6 {[%clk 0:00:05]} 59. Kb4 {[%clk 0:01:04]}  Ka6 {[%clk 0:00:06]} 60. Ka4 {[%clk 0:01:04]}  Rc4+ {[%clk 0:00:06]} 61. Kb3 {[%clk 0:01:04]}  Kb5 {[%clk 0:00:07]} 62. Ka3 {[%clk 0:01:04]}  Rc3+ {[%clk 0:00:07]} 63. Kb2 {[%clk 0:01:04]}  Kb4 {[%clk 0:00:08]} 64. Ka2 {[%clk 0:01:05]}  Rc2+ {[%clk 0:00:08]} 65. Kb1 {[%clk 0:01:01]}  Kb3 {[%clk 0:00:09]} 0-1


[Site "https://www.chess.com"]

[Event "Titled Tuesday Blitz July 11 Early 2023"]
[White "Manukian, Artak"]
[Black "Clawitter, Craig"]
[WhiteFideId "13301373"]
[BlackFideId "2023105"]
[WhiteElo "2492"]
[BlackElo "2300"]
[Result "1-0"]
[Round "5"]
[TimeControl "180+2"]
[Date "2023.07.11"]
[WhiteClock "0:01:24"]
[BlackClock "0:01:16"]
[Board "158"]

1. e4 {[%clk 0:02:54]}  e6 {[%clk 0:03:00]} 2. d4 {[%clk 0:02:53]}  d5 {[%clk 0:03:01]} 3. e5 {[%clk 0:02:52]}  c5 {[%clk 0:03:00]} 4. c3 {[%clk 0:02:52]}  Qb6 {[%clk 0:03:01]} 5. Nf3 {[%clk 0:02:51]}  Nc6 {[%clk 0:03:01]} 6. a3 {[%clk 0:02:50]}  Nh6 {[%clk 0:03:02]} 7. b4 {[%clk 0:02:49]}  cxd4 {[%clk 0:03:02]} 8. cxd4 {[%clk 0:02:50]}  Nf5 {[%clk 0:02:59]} 9. Bb2 {[%clk 0:02:50]}  Bd7 {[%clk 0:03:00]} 10. g4 {[%clk 0:02:46]}  Nh6 {[%clk 0:02:56]} 11. g5 {[%clk 0:02:40]}  Nf5 {[%clk 0:02:54]} 12. Bh3 {[%clk 0:02:38]}  a5 {[%clk 0:02:39]} 13. Bxf5 {[%clk 0:02:36]}  exf5 {[%clk 0:02:40]} 14. Nc3 {[%clk 0:02:35]}  axb4 {[%clk 0:02:24]} 15. Nxd5 {[%clk 0:02:29]}  Qd8 {[%clk 0:02:08]} 16. axb4 {[%clk 0:02:09]}  Rxa1 {[%clk 0:02:05]} 17. Bxa1 {[%clk 0:01:57]}  Nxb4 {[%clk 0:02:05]} 18. Ne3 {[%clk 0:01:52]}  Bb5 {[%clk 0:01:55]} 19. Qb3 {[%clk 0:01:34]}  Nd3+ {[%clk 0:01:29]} 20. Kd2 {[%clk 0:01:30]}  Qc8 {[%clk 0:01:16]} 21. Qxb5+ {[%clk 0:01:24]} 1-0


[Site "https://www.chess.com"]